Cogmind - Beta 14 @@@ ROGUE MODE // 2025.03.11 @ 16:46:50 Player: Solshine Result: Smashed by cave-in Performance ------------- Evolutions (1) 500 Regions Visited (3) 600 Robots Destroyed (12) 60 Value Destroyed (233) 233 Prototype IDs (2) 40 Alien Tech Used (0) 0 Bonus (-124) -124 TOTAL SCORE: 1309 Bonus ------- Friendly Fire -124 Cogmind --------- Core Integrity 0/400 Matter 187/300 Energy 99/100 System Corruption 4% Temperature Cool (0) Movement Core (100) Ox1 Location -9/Mines Parts ------- > --- POWER (1) -------- (None) > --- PROPULSION (4) --- (None) > --- UTILITY (2) ------ Small Storage Unit Improved Targeting Computer > --- WEAPON (2) ------- (None) > --- INVENTORY (8) ---- Ion Engine Aluminum Leg Aluminum Leg Structural Scanner Improved Terrain Scanner Power Shielding Authchip [Processor] EM Pulse Gun Peak State ------------ > --- POWER ------------ Ion Engine > --- PROPULSION ------- Light Treads Light Treads Light Treads Light Treads > --- UTILITY ---------- Small Storage Unit Improved Targeting Computer > --- WEAPON ----------- Heavy Assault Rifle Rocket Launcher > --- INVENTORY -------- Ion Engine Aluminum Leg Aluminum Leg Improved Terrain Scanner Power Shielding Authchip [Processor] EM Pulse Gun [Rating: 13] Favorites ----------- Power Ion Engine Engine Ion Engine Propulsion Aluminum Leg Treads Light Treads Leg Aluminum Leg Utility Small Storage Unit Device Improved Terrain Scanner Storage Small Storage Unit Processor Signal Interpreter Weapon EM Pulse Gun Energy Gun EM Pulse Gun Ballistic Gun Heavy Assault Rifle Launcher Grenade Launcher Build | -11 -10 -9 -9 ------- Run | Yrd Mat Mat Min Slots Evolved 2 | . . 2 . Power . | . . . . Propulsion 2 | . . 2 . Utility . | . . . . Weapon . | . . . . Parts Attached 17 | 7 3 7 . Power 2 | 1 1 . . Engine 2 | 1 1 . . Core . | . . . . Reactor . | . . . . Propulsion 6 | 2 . 4 . Treads 4 | . . 4 . Leg 2 | 2 . . . Wheel . | . . . . Hover . | . . . . Flight . | . . . . Utility 4 | 2 1 1 . Device 1 | 1 . . . Storage 1 | 1 . . . Processor 2 | . 1 1 . Hackware . | . . . . Protection . | . . . . Artifact . | . . . . Weapon 5 | 2 1 2 . Energy Gun 1 | 1 . . . Energy Cannon . | . . . . Ballistic Gun 2 | 1 . 1 . Ballistic Cannon . | . . . . Launcher 2 | . 1 1 . Special Weapon . | . . . . Impact Weapon . | . . . . Slashing Weapon . | . . . . Piercing Weapon . | . . . . Special Melee Weapon . | . . . . Unidentified Prototypes . | . . . . Parts Lost 7 | . . . 7 Power 1 | . . . 1 Propulsion 4 | . . . 4 Utility . | . . . . Weapon 2 | . . . 2 Highest Loss Streak 7 | . . . 7 To Critical Strikes . | . . . . Average Slot Usage (%) 92 | . 100 87 80 Engine 11 | . 14 11 6 Treads 14 | . . 23 39 Leg 16 | . 28 8 . Storage 12 | . 14 11 11 Processor 11 | . 13 11 11 Energy Gun 8 | . 14 4 . Ballistic Gun 3 | . 1 6 4 Launcher 11 | . 12 11 7 Peak Build Rating 13 | 9 9 13 13 Average Rating 8 | 5 8 10 10 On Entrance 7 | . 9 8 13 Naked Turns . | . . . . Heaviest Build 17 | 13 15 17 17 Greatest Support 80 | 20 20 80 80 Greatest Overweight (x) 1 | 1 . . 1 Average Overweight (x) . | . . . . Largest Inventory Capacity 8 | 8 8 8 8 Average Capacity 7 | 6 8 8 8 Most Carried 8 | 5 8 8 8 Average Carried 7 | 3 7 7 8 Final Capacity 8 | 8 8 8 8 Final Carried 8 | 5 8 8 8 Class Distribution -------------------- 100% | Mutant Dominant Class ---------------- Mutant | -10/Materials Mutant | -9/Materials Mutant | -9/Mines Resources | -11 -10 -9 -9 ----------- Run | Yrd Mat Mat Min Matter Collected 408 | 272 . 136 . Remotely . | . . . . Salvage Created 292 | 76 . 162 54 Parts 23 | 4 . 16 3 Haulers Intercepted . | . . . . Recyclers Shooed . | . . . . Parts Field Recycled . | . . . . Retrieved Matter . | . . . . Parts Self-Destructed . | . . . . Prevented . | . . . . Kills | -11 -10 -9 -9 ------- Run | Yrd Mat Mat Min Combat Hostiles Destroyed 8 | . . 7 1 Guns 2 | . . 2 . AOE 6 | . . 5 1 Classes Destroyed 7 | 2 . 4 1 Tunneler 1 | 1 . . . Recycler 1 | 1 . . . Watcher 1 | . . 1 . Swarmer 5 | . . 4 1 Grunt 1 | . . 1 . Sentry 2 | . . 2 . Guerrilla 1 | . . . 1 Best Kill Streak 6 | 2 . 6 1 Combat Bots Only 5 | . . 5 1 Max Kills in Single Turn 2 | 1 . 2 1 Gunslinging . | . . . . Exploded 2 | . . 2 1 Melee . | . . . . Uniques/NPCs Destroyed . | . . . . Combat | -11 -10 -9 -9 -------- Run | Yrd Mat Mat Min Hostile Shots Fired 67 | . 1 29 37 Missed 17 | . . 11 6 Damage Taken 1395 | . 10 198 1187 Core 406 | . . 21 385 Absorbed by Shields . | . . . . Core Remaining (%) 100 | 100 100 . . Volleys Fired 31 | 6 . 20 5 Largest 2 | 2 . 2 2 Hottest 70 | 60 . 70 56 Shots Fired 41 | 11 . 24 6 Gun 27 | 11 . 15 1 Cannon . | . . . . Launcher 14 | . . 9 5 Special . | . . . . Kinetic 19 | 6 . 12 1 Thermal . | . . . . Explosive 14 | . . 9 5 Electromagnetic 8 | 5 . 3 . Robot Hit Streak 8 | 3 . 8 6 Robot Miss Streak 2 | 2 . 2 . Penetration Max . | . . . . Secondary Targets . | . . . . Shots Hit Robots 25 | 6 . 18 1 Core Hits 21 | 3 . 11 7 Critical Kills . | . . . . Critical Parts Destroyed . | . . . . Critical Strikes . | . . . . Melee Attacks . | . . . . Impact . | . . . . Slashing . | . . . . Piercing . | . . . . Sneak Attacks . | . . . . Combat Hostiles . | . . . . Follow-up Attacks . | . . . . Damage Inflicted 666 | 74 . 488 104 Guns 201 | 74 . 127 . Cannons . | . . . . Explosions 453 | . . 361 92 Melee . | . . . . Ramming 12 | . . . 12 Kinetic 143 | 26 . 117 . Thermal . | . . . . Explosive 453 | . . 361 92 Electromagnetic 58 | 48 . 10 . Impact . | . . . . Slashing . | . . . . Piercing . | . . . . Highest Corruption 4 | . . . 4 Average Corruption 4 | . . . 4 Corruption Purged . | . . . . Corruption Blocked . | . . . . Overload Shots . | . . . . Overflow Damage 3 | . . 3 . Projectiles . | . . . . Explosions 3 | . . 3 . Melee . | . . . . Knockbacks . | . . . . Impact . | . . . . Kinetic . | . . . . Secondary . | . . . . Self-Inflicted Damage 11 | . . 4 7 Shots 3 | . . 2 1 Rammed 5 | . . . 5 Targets Rammed 5 | . . . 5 Kicked . | . . . . Crushed . | . . . . Highest Temperature 1 | . . 1 . Average Temperature 1 | . . 1 . Received Heat Transfer 138 | . . 78 60 Siege Activations . | . . . . Robots Corrupted . | . . . . Combat Hostiles . | . . . . Parts Fried 1 | 1 . . . Impact Corruptions . | . . . . Robots Melted . | . . . . Combat Hostiles . | . . . . Parts Melted . | . . . . Heat Transferred . | . . . . Parts Sabotaged . | . . . . Parts Stolen . | . . . . Parts Stripped . | . . . . Power Chain Reactions . | . . . . Alert | -11 -10 -9 -9 ------- Run | Yrd Mat Mat Min Peak Influence 418 | 10 36 418 194 Initial 162 | . 6 14 162 Average 122 | 2 16 245 170 Maximum Alert Level 2 | . . 2 . Low Security (%) 73 | 100 100 34 100 Level 1 18 | . . 44 . Level 2 8 | . . 21 . Level 3 . | . . . . Level 4 . | . . . . Level 5 . | . . . . High Security . | . . . . Max Security . | . . . . Squads Dispatched . | . . . . Investigation . | . . . . Extermination . | . . . . Reinforcement . | . . . . Assault . | . . . . Garrison . | . . . . Intercept . | . . . . Searches Triggered . | . . . . Construction Impeded . | . . . . Haulers Reinforced . | . . . . Active Scanning Responses . | . . . . Cargo Convoy Interrupts . | . . . . Stealth | -11 -10 -9 -9 --------- Run | Yrd Mat Mat Min Distress Signals 2 | . . 2 . Communications Jammed . | . . . . Distress Signals . | . . . . Times Spotted 25 | . 1 14 10 Peak Tracking Total 7 | . 2 7 5 Tactical Retreats 3 | . 1 1 1 Traps | -11 -10 -9 -9 ------- Run | Yrd Mat Mat Min Traps Triggered . | . . . . Indirectly . | . . . . Trap Hack Attempts . | . . . . Triggered . | . . . . Disarmed . | . . . . Reprogrammed . | . . . . Reused . | . . . . Traps Extracted . | . . . . Installed . | . . . . Triggered . | . . . . Machines | -11 -10 -9 -9 ---------- Run | Yrd Mat Mat Min Machines Disabled 3 | . . 3 . Max in Single Turn 1 | . . 1 . Machines Repaired . | . . . . Machines Dismantled . | . . . . Machines Sabotaged . | . . . . Overloaded Fab Kills . | . . . . Hacking | -11 -10 -9 -9 --------- Run | Yrd Mat Mat Min Machines Accessed 5 | . 2 3 . Terminals 3 | . 1 2 . Fabricators . | . . . . Repair Stations . | . . . . Recycling Units 1 | . 1 . . Scanalyzers 1 | . . 1 . Garrison Access . | . . . . Total Hacks 20 | . 6 14 . Successful 14 | . 3 11 . Failed 6 | . 3 3 . Catastrophic 1 | . 1 . . Database Lockouts . | . . . . Manual . | . . . . Terminals 12 | . 3 9 . Fabricators . | . . . . Repair Stations . | . . . . Recycling Units 3 | . 3 . . Scanalyzers 5 | . . 5 . Garrison Access . | . . . . Terminal Hacks 7 | . 1 6 . Record 4 | . . 4 . Robot Analysis 1 | . . 1 . Prototype ID Bank 1 | . . 1 . Emergency Access Points 1 | . 1 . . Fabricator Hacks . | . . . . Repair Station Hacks . | . . . . Recycling Unit Hacks 2 | . 2 . . Report Inventory 1 | . 1 . . Retrieve Components 1 | . 1 . . Scanalyzer 5 | . . 5 . Insert Component 3 | . . 3 . Analyze 2 | . . 2 . Garrison Access Hacks . | . . . . Unauthorized Hacks . | . . . . Terminals . | . . . . Fabricators . | . . . . Repair Stations . | . . . . Recycling Units . | . . . . Scanalyzers . | . . . . Garrison Access . | . . . . Data Cores Recovered . | . . . . Used . | . . . . Hacking Detections 5 | . 2 3 . Full Trace Events . | . . . . Feedback Events . | . . . . Feedback Blocked . | . . . . Robot Schematics Acquired . | . . . . Robots Built . | . . . . Authchips . | . . . . Time . | . . . . Total Robot Build Rating . | . . . . Part Schematics Acquired 2 | . . 2 . Parts Built . | . . . . Authchips . | . . . . Time . | . . . . Total Part Build Rating . | . . . . Parts Repaired . | . . . . Time . | . . . . Parts Recycled . | . . . . Recycled Matter . | . . . . Retrieved Matter . | . . . . Retrieved Components 3 | . 3 . . Parts Scanalyzed 2 | . . 2 . Part Schematics Acquired 2 | . . 2 . Parts Damaged . | . . . . Bothacking | -11 -10 -9 -9 ------------ Run | Yrd Mat Mat Min Used RIF Installer . | . . . . Robots Hacked . | . . . . Non-combat . | . . . . Combat . | . . . . Robot Hacks Applied . | . . . . Relay Couplers Released . | . . . . Fabnet Peak Effective % . | . . . . Robots Rewired . | . . . . Allies Hacked . | . . . . Hacks Repelled . | . . . . Allies | -11 -10 -9 -9 -------- Run | Yrd Mat Mat Min Total Allies . | . . . . Largest Group . | . . . . Highest-Rated Group . | . . . . Highest-Rated Ally . | . . . . Total Orders . | . . . . Ally Attacks . | . . . . Total Damage . | . . . . Kills . | . . . . Allies Corrupted . | . . . . Allies Melted . | . . . . Intel | -11 -10 -9 -9 ------- Run | Yrd Mat Mat Min Robot Analysis Total 1 | . . 1 . Derelict Logs Recovered . | . . . . Drone Launches . | . . . . Drone Recoveries . | . . . . Exploration | -11 -10 -9 -9 ------------- Run | Yrd Mat Mat Min Turns Passed 782 | 93 298 320 71 Spaces Moved 504 | 50 239 182 33 Core 7 | 6 . . 1 Treads 127 | . . 95 32 Legs 370 | 44 239 87 . Wheels . | . . . . Hover . | . . . . Flight . | . . . . Fastest Speed 50 | 50 120 120 100 Average Speed 129 | 114 120 140 158 Slowest Speed 160 | 120 120 160 160 Overloaded Moves . | . . . . Propulsion Burnouts . | . . . . Robots Hopped . | . . . . Cave-ins Triggered 2 | . . . 2 Exploration Rate (%) 16 | 3 37 21 6 Regions Visited 3 Branch Regions 1 Pre-discovered Areas . | . . . . Known Exits Taken 1 | . 1 . . Unknown Exits Taken 2 | 1 . 1 . Scrap Searched . | . . . . Spaces Dug . | . . . . Terrain Destroyed 72 | . . 26 46 Melee . | . . . . Projectile . | . . . . AOE 72 | . . 26 46 Terrain Rammed . | . . . . Walls Destroyed . | . . . . Machines Disabled . | . . . . Actions | -11 -10 -9 -9 --------- Run | Yrd Mat Mat Min Total 590 | 74 250 222 44 Wait 2 | . . . 2 Move 499 | 49 238 181 31 Hop . | . . . . Pick Up 26 | 12 6 8 . Fast Attach 1 | . . 1 . Attach 9 | 7 . 2 . Detach . | . . . . Swap 7 | . 3 4 . Drop 9 | . 3 6 . Fire 31 | 6 . 20 5 Melee . | . . . . Ram 2 | . . . 2 Kick . | . . . . Crush 3 | . . . 3 Escape Stasis 1 | . . . 1 Rewire . | . . . . Trap . | . . . . Miscellaneous . | . . . . Route ------- -11/Scrapyard -10/Materials (discovered 2 exits: *Mat / [*Min]) -9/Materials -9/Mines History --------- Turn | Location | Event 16 | -11/Scrapyard | Discovered new exit (range 16) 94 | -11/Scrapyard | Entered Materials 172 | -10/Materials | Discovered new exit (range 14) 305 | -10/Materials | Build established: Mutant 380 | -10/Materials | Discovered new exit (range 9) 391 | -10/Materials | Identified exit to Materials 392 | -10/Materials | Entered another Materials area 392 | -9/Materials | Evolved 2 slots: Propulsion x2 704 | -9/Materials | Discovered new exit (range 6) 712 | -9/Materials | Entered Mines 718 | -9/Mines | Assembled infested the area 723 | -9/Mines | Assisted by a Guerilla fighting off Assembled 773 | -9/Mines | Crushed by falling debris 774 | -9/Mines | Core integrity fell below 50% 777 | -9/Mines | Core integrity fell below 20% 783 | -9/Mines | Crushed by falling debris 783 | -9/Mines | Smashed by cave-in Last Messages --------------- D-53 Grenadier destroyed. The unstable cave ceiling collapses. Rocket Launcher destroyed. Slammed into as-91525. The unstable cave ceiling collapses. Lgt. Treads destroyed. The unstable cave ceiling collapses. Crushed by falling debris. [Achievement: Unlikely Earthworm] Lgt. Treads destroyed. System corrupted by crushing effect (+4). Lgt. Treads destroyed. as-66482 sneak attacks. The unstable cave ceiling collapses. Lgt. Treads destroyed. Slammed into as-91525. Imp. Targeting Computer broken. Destabilizing: Short circuit. The unstable cave ceiling collapses. Crushed by falling debris. Map ----- +----------------------------------------------------+ | | | | | | | | | | | | | | | | | | | | | | | | | | | | | | | | | ???????????????????????????????????????????????? | | ???????????###?????????????????????????????????? | | ?????????### #########?????????????????????????? | | ????????## # # ##????????????????????????? | | ???????## #????????????????????????? | | ???????# # ####?????????????????????? | | ????#### ## # #?????????????????????? | | ????# a# #?????????????????????? | | ????# # ###?????????????????????? | | ????# #@##?????????????????????? | | ????##### % # #?????????????????????? | | ????????## # #* #######?????????????????????? | | ?????????########% #???????????????????????????? | | ???????????????# %#??????????????????????????? | | ???????????????#[% #??????????????????????????? | | ???????????????%=%= ??????????????????????????? | | ?????????????? *! #?????????????????????????? | | ????????????? !%= #?????????????????????????? | | ????????????# =%*!%##?????????????????????????? | | ????????????# ## ##??????????????????????????? | | ????????????# #?? #???????????????????????????? | | ????????????# ??? ???????????????????????????? | | ???????????? ???#????????????????????????????? | | ???????????????????????????????????????????????? | | ???????????????????????????????????????????????? | | ???????????????????????????????????????????????? | | ???????????????????????????????????????????????? | | ???????????????????????????????????????????????? | | ???????????????????????????????????????????????? | | ???????????????????????????????????????????????? | | ???????????????????????????????????????????????? | | ???????????????????????????????????????????????? | | ???????????????????????????????????????????????? | | ???????????????????????????????????????????????? | +----------------------------------------------------+ Best States ------------- Heat Dissipation 28 Energy Generation 10 Energy Capacity 250 Matter Stores 284 Matter Capacity 300 Sight Range 16 Terrain Scan Range 16 Terrain Scan Density 10 Evasion (%) 55 Targeting Accuracy 6 Recoil Reduction 4 Authchip Count 1 Item Schematics ----------------- Imp. Terrain Scanner | -9/Materials | Scanalyzed Power Shielding | -9/Materials | Scanalyzed Robot Schematics ------------------ None Fabricated ------------ Nothing Alien Tech Used ----------------- None Achievements -------------- Backstab Unlikely Earthworm Challenges ------------ None Game ------ Seed UtilityMakeshiftDatajack Manual? 0 Play Time 00:15:09 Cumulative 2.0 hours Start 2025.03.11 @ 16:32:03 End 2025.03.11 @ 16:46:50 Sessions 1 Manual Loads 0 Difficulty Rogue Special Mode None Game No. 5 Rogue 5 Adventurer 0 Explorer 0 Win Type - Total 0 Types 0/0/0/0/0/0/0/0/0 Lore% 1 Gallery% 4 Achievement% 5 Wizard Run 0 Options --------- Layout 1 ASCII 0 Keyboard 0 Movement Mouse Keybinds 0 Fullscreen 1 Font 24/Smallcaps Map View 50x35 Zoom Use 0% Tactical HUD 0 Map Filters NONE Filters NONE Steam 1 RUN: 42d822a6-fd65-4a30-a6fe-4153745ff0b0